Cogmind - Beta 11 @@@ ROGUE MODE // 2022.04.16 @ 16:15:41 Player: RNGesus Result: Destroyed by 8R-AWN with 8R-AWN's Boregun Performance ------------- Evolutions (0) 0 Regions Visited (3) 600 Robots Destroyed (22) 110 Value Destroyed (528) 528 Prototype IDs (23) 460 Alien Tech Used (0) 0 Bonus (11) 11 TOTAL SCORE: 1709 Bonus ------- Aligned with FarCom 300 Friendly Fire -289 Cogmind --------- Core Integrity 0/250 Matter 205/300 Energy 110/125 System Corruption 0% Temperature Cool (0) Movement Walking (330) Ox3 Location -10/Exiles Parts ------- > --- POWER (1) -------- Light Ion Engine > --- PROPULSION (2) --- Light Treads Improved Aluminum Leg > --- UTILITY (2) ------ High-capacity Storage Unit Utility Shielding > --- WEAPON (2) ------- Mining Claw Longsword +1 > --- INVENTORY (20) --- Light Treads Improved Aluminum Leg Improved Aluminum Leg Improved Aluminum Leg Carbon-fiber Leg Wheel Huge Storage Unit Structural Scanner Transport Network Coupler Heavy EM Pulse Gun Heavy EM Pulse Gun Particle Gun Light Assault Rifle Light Assault Rifle Light Assault Rifle Grenade Launcher Peak State ------------ > --- POWER ------------ Light Nuclear Core > --- PROPULSION ------- Light Treads Improved Aluminum Leg > --- UTILITY ---------- High-capacity Storage Unit Utility Shielding > --- WEAPON ----------- Mining Claw Longsword +1 > --- INVENTORY -------- Light Ion Engine Light Treads Improved Aluminum Leg Improved Aluminum Leg Improved Aluminum Leg Carbon-fiber Leg Wheel Huge Storage Unit Structural Scanner Transport Network Coupler Heavy EM Pulse Gun Heavy EM Pulse Gun Particle Gun Light Assault Rifle Light Assault Rifle Light Assault Rifle Grenade Launcher [Rating: 19] Favorites ----------- Power Light Ion Engine Engine Light Ion Engine Power Core Light Nuclear Core Propulsion Light Treads Treads Light Treads Leg Improved Aluminum Leg Utility Utility Shielding Device Seismic Detector Storage High-capacity Storage Unit Protection Utility Shielding Weapon Heavy EM Pulse Gun Energy Gun Heavy EM Pulse Gun Ballistic Gun Light Assault Rifle Launcher Grenade Launcher Slashing Weapon Longsword +1 Build | -11 -10 -10 -10 ------- Run | Scr Mat Min Exi Slots Evolved . | . . . . Power . | . . . . Propulsion . | . . . . Utility . | . . . . Weapon . | . . . . Parts Attached 27 | 6 10 4 7 Power 3 | 1 . 1 1 Engine 2 | 1 . . 1 Core 1 | . . 1 . Reactor . | . . . . Propulsion 4 | 2 . . 2 Treads 3 | 2 . . 1 Leg 1 | . . . 1 Wheel . | . . . . Hover . | . . . . Flight . | . . . . Utility 6 | 1 5 . . Device 1 | . 1 . . Storage 4 | 1 3 . . Processor . | . . . . Hackware . | . . . . Protection 1 | . 1 . . Artifact . | . . . . Weapon 14 | 2 5 3 4 Energy Gun 6 | 2 2 2 . Energy Cannon . | . . . . Ballistic Gun 1 | . 1 . . Ballistic Cannon . | . . . . Launcher 4 | . 2 1 1 Special Weapon . | . . . . Impact Weapon . | . . . . Slashing Weapon 3 | . . . 3 Piercing Weapon . | . . . . Special Melee Weapon . | . . . . Unidentified Prototypes . | . . . . Parts Lost 5 | . 1 1 3 Power 2 | . . 1 1 Propulsion 2 | . . . 2 Utility 1 | . 1 . . Weapon . | . . . . Highest Loss Streak 3 | . 1 1 3 To Critical Strikes 2 | . . . 2 Average Slot Usage (%) 98 | . 96 99 100 Engine 10 | . 14 11 . Core 3 | . . 1 13 Treads 27 | . 28 28 27 Device 1 | . 3 . . Storage 13 | . 13 14 14 Protection 11 | . 7 14 14 Energy Gun 23 | . 22 27 17 Ballistic Gun 2 | . 5 . . Slashing Weapon 1 | . . . 9 Naked Turns . | . . . . Heaviest Build 52 | 12 48 52 52 Greatest Support 40 | 40 40 40 40 Greatest Overweight (x) 2 | 2 1 1 1 Average Overweight (x) . | . . 1 1 Largest Inventory Capacity 20 | 8 20 20 20 Average Capacity 17 | 7 15 20 20 Most Carried 20 | 3 20 20 20 Average Carried 16 | 1 12 19 19 Final Capacity 20 | 8 20 20 20 Final Carried 20 | 3 20 20 16 Class Distribution -------------------- 100% | Mutant Dominant Class ---------------- Mutant | -10/Materials Mutant | -10/Mines Mutant | -10/Exiles Resources | -11 -10 -10 -10 ----------- Run | Scr Mat Min Exi Matter Collected 450 | 142 188 120 . Remotely . | . . . . Salvage Created 697 | . 421 264 12 Parts 46 | . 31 15 . Haulers Intercepted 2 | . 2 . . Recyclers Shooed . | . . . . Parts Field Recycled . | . . . . Retrieved Matter . | . . . . Parts Self-Destructed . | . . . . Prevented . | . . . . Kills | -11 -10 -10 -10 ------- Run | Scr Mat Min Exi Combat Hostiles Destroyed 22 | . 9 7 6 Melee 1 | . . . 1 Guns 10 | . 6 4 . AOE 11 | . 3 3 5 Classes Destroyed 6 | . 4 1 1 Worker 1 | . . 1 . Tunneler 3 | . 1 2 . Hauler 2 | . 2 . . Swarmer 6 | . 3 3 . Grunt 10 | . 6 4 . Assembled 7 | . . . 7 Best Kill Streak 6 | . 3 3 6 Combat Bots Only 6 | . 3 3 6 Max Kills in Single Turn 4 | . 2 3 4 Gunslinging 1 | . . 1 . Exploded 4 | . 2 3 4 Melee 1 | . . . 1 Uniques/NPCs Destroyed . | . . . . Combat | -11 -10 -10 -10 -------- Run | Scr Mat Min Exi Damage Taken 1002 | . 231 167 604 Core 254 | . 68 . 186 Absorbed by Shields . | . . . . Redirected to Shielding 37 | . . 2 35 Core Remaining (%) 100 | 100 . . . Volleys Fired 41 | . 25 12 4 Largest 2 | . 2 2 1 Hottest 90 | . 80 90 30 Shots Fired 73 | . 46 23 4 Gun 64 | . 42 22 . Cannon . | . . . . Launcher 9 | . 4 1 4 Special . | . . . . Kinetic . | . . . . Thermal . | . . . . Explosive 9 | . 4 1 4 Electromagnetic 64 | . 42 22 . Robot Hit Streak 8 | . 8 4 5 Robot Miss Streak 3 | . 3 1 . Penetration Max . | . . . . Secondary Targets 2 | . 1 1 . Max Gunslinging Chain 1 | . 1 1 . Shots Hit Robots 57 | . 28 13 16 Core Hits 46 | . 20 9 17 Critical Kills . | . . . . Critical Parts Destroyed . | . . . . Critical Strikes . | . . . . Melee Attacks 15 | . . . 15 Impact . | . . . . Slashing 15 | . . . 15 Piercing . | . . . . Sneak Attacks . | . . . . Combat Hostiles . | . . . . Follow-up Attacks . | . . . . Damage Inflicted 2000 | . 610 334 1056 Guns 596 | . 373 223 . Cannons . | . . . . Explosions 727 | . 237 109 381 Melee 675 | . . . 675 Ramming 2 | . . 2 . Kinetic . | . . . . Thermal . | . . . . Explosive 727 | . 237 109 381 Electromagnetic 596 | . 373 223 . Impact . | . . . . Slashing 675 | . . . 675 Piercing . | . . . . Highest Corruption . | . . . . Average Corruption . | . . . . Corruption Purged . | . . . . Corruption Blocked . | . . . . Overload Shots . | . . . . Overflow Damage 58 | . . 25 33 Projectiles . | . . . . Explosions 36 | . . 25 11 Melee 22 | . . . 22 Knockbacks . | . . . . Impact . | . . . . Kinetic . | . . . . Secondary . | . . . . Self-Inflicted Damage 20 | . . 20 . Shots 1 | . . 1 . Rammed 1 | . . 1 . Targets Rammed 1 | . . 1 . Kicked . | . . . . Crushed . | . . . . Highest Temperature 126 | . 126 96 . Average Temperature 38 | . 39 37 . Received Heat Transfer 171 | . 108 63 . Siege Activations . | . . . . Robots Corrupted . | . . . . Combat Hostiles . | . . . . Parts Fried 2 | . 2 . . Impact Corruptions . | . . . . Robots Melted . | . . . . Combat Hostiles . | . . . . Parts Melted . | . . . . Heat Transferred . | . . . . Parts Sabotaged . | . . . . Parts Stolen . | . . . . Parts Stripped . | . . . . Power Chain Reactions . | . . . . Missiles Intercepted . | . . . . Alert | -11 -10 -10 -10 ------- Run | Scr Mat Min Exi Peak Influence 185 | . 185 121 . Initial 39 | . . 39 . Average 60 | . 79 41 . Maximum Alert Level . | . . . . Low Security (%) 100 | 100 100 100 . Level 1 . | . . . . Level 2 . | . . . . Level 3 . | . . . . Level 4 . | . . . . Level 5 . | . . . . High Security . | . . . . Max Security . | . . . . Squads Dispatched 1 | . 1 . . Investigation 1 | . 1 . . Extermination . | . . . . Reinforcement . | . . . . Assault . | . . . . Garrison . | . . . . Intercept . | . . . . Searches Triggered . | . . . . Construction Impeded . | . . . . Haulers Reinforced . | . . . . Active Scanning Responses . | . . . . Cargo Convoy Interrupts . | . . . . Stealth | -11 -10 -10 -10 --------- Run | Scr Mat Min Exi Distress Signals 2 | . 2 . . Communications Jammed . | . . . . Distress Signals . | . . . . Times Spotted 38 | . 23 8 7 Peak Tracking Total 8 | . 6 3 8 Tactical Retreats 2 | . 1 1 . Traps | -11 -10 -10 -10 ------- Run | Scr Mat Min Exi Traps Triggered 1 | . 1 . . Indirectly . | . . . . Trap Hack Attempts . | . . . . Triggered . | . . . . Disarmed . | . . . . Reprogrammed . | . . . . Reused . | . . . . Traps Extracted . | . . . . Installed . | . . . . Triggered . | . . . . Machines | -11 -10 -10 -10 ---------- Run | Scr Mat Min Exi Machines Disabled 8 | . 5 . 3 Max in Single Turn 1 | . 1 . 1 Machines Sabotaged . | . . . . Garrisons Compromised . | . . . . Overloaded Fab Kills . | . . . . Hacking | -11 -10 -10 -10 --------- Run | Scr Mat Min Exi Machines Accessed 2 | . 1 . 1 Terminals 1 | . 1 . . Fabricators . | . . . . Repair Stations . | . . . . Recycling Units . | . . . . Scanalyzers . | . . . . Garrison Access . | . . . . Total Hacks 4 | . 3 . 1 Successful 2 | . 1 . 1 Failed 1 | . 1 . . Catastrophic . | . . . . Database Lockouts 1 | . 1 . . Manual 4 | . 3 . 1 Terminals 3 | . 3 . . Fabricators . | . . . . Repair Stations . | . . . . Recycling Units . | . . . . Scanalyzers . | . . . . Garrison Access . | . . . . Terminal Hacks 2 | . 1 . 1 Robot Analysis 1 | . 1 . . EX-Prototype ID Bank 1 | . . . 1 Fabricator Hacks . | . . . . Repair Station Hacks . | . . . . Recycling Unit Hacks . | . . . . Scanalyzer . | . . . . Garrison Access Hacks . | . . . . Unauthorized Hacks . | . . . . Terminals . | . . . . Fabricators . | . . . . Repair Stations . | . . . . Recycling Units . | . . . . Scanalyzers . | . . . . Garrison Access . | . . . . Data Cores Recovered . | . . . . Used . | . . . . Hacking Detections 1 | . 1 . . Full Trace Events . | . . . . Feedback Events . | . . . . Feedback Blocked . | . . . . Robot Schematics Acquired . | . . . . Robots Built . | . . . . Authchips . | . . . . Time . | . . . . Total Robot Build Rating . | . . . . Part Schematics Acquired . | . . . . Parts Built . | . . . . Authchips . | . . . . Time . | . . . . Total Part Build Rating . | . . . . Parts Repaired . | . . . . Time . | . . . . Parts Recycled . | . . . . Recycled Matter . | . . . . Retrieved Matter . | . . . . Retrieved Components . | . . . . Parts Scanalyzed . | . . . . Part Schematics Acquired . | . . . . Parts Damaged . | . . . . Bothacking | -11 -10 -10 -10 ------------ Run | Scr Mat Min Exi Used RIF Installer . | . . . . Robots Hacked . | . . . . Non-combat . | . . . . Combat . | . . . . Robot Hacks Applied . | . . . . Relay Couplers Released . | . . . . Fabnet Peak Effective % . | . . . . Robots Rewired . | . . . . Allies Hacked . | . . . . Hacks Repelled . | . . . . Allies | -11 -10 -10 -10 -------- Run | Scr Mat Min Exi Total Allies 1 | . . 1 . Largest Group 1 | . . 1 . Highest-Rated Group 31 | . . 31 . Highest-Rated Ally 31 | . . 31 . Total Orders . | . . . . Ally Attacks 6 | . . 6 . Total Damage 124 | . . 124 . Kills . | . . . . Allies Corrupted . | . . . . Allies Melted 1 | . . 1 . Intel | -11 -10 -10 -10 ------- Run | Scr Mat Min Exi Robot Analysis Total 1 | . 1 . . Derelict Logs Recovered 1 | . . 1 . Drone Launches . | . . . . Drone Recoveries . | . . . . Exploration | -11 -10 -10 -10 ------------- Run | Scr Mat Min Exi Turns Passed 3630 | 78 1549 1349 654 Spaces Moved 1561 | 45 728 540 248 Core 11 | 11 . . . Treads 1550 | 34 728 540 248 Legs . | . . . . Wheels . | . . . . Hover . | . . . . Flight . | . . . . Fastest Speed 50 | 50 160 240 240 Average Speed 217 | 148 196 240 240 Slowest Speed 240 | 160 240 240 240 Overloaded Moves . | . . . . Propulsion Burnouts . | . . . . Robots Hopped . | . . . . Cave-ins Triggered . | . . . . Exploration Rate (%) 61 | 4 97 98 45 Regions Visited 3 Branch Regions 2 Pre-discovered Areas 1 | . . 1 . Known Exits Taken . | . . . . Unknown Exits Taken 3 | 1 1 1 . Scrap Searched 1 | . . 1 . Spaces Dug 12 | . 12 . . Terrain Destroyed 39 | . 27 4 8 Melee . | . . . . Projectile . | . . . . AOE 39 | . 27 4 8 Terrain Rammed . | . . . . Walls Destroyed . | . . . . Machines Disabled . | . . . . Actions | -11 -10 -10 -10 --------- Run | Scr Mat Min Exi Total 1716 | 53 803 570 290 Wait 24 | . 15 9 . Move 1558 | 44 727 539 248 Hop . | . . . . Pick Up 32 | 3 19 3 7 Fast Attach 11 | 6 4 . 1 Attach 5 | . . 1 4 Detach 1 | . 1 . . Swap 11 | . 6 3 2 Drop 17 | . 6 2 9 Fire 41 | . 25 12 4 Melee 15 | . . . 15 Ram . | . . . . Kick . | . . . . Crush 1 | . . 1 . Escape Stasis . | . . . . Rewire . | . . . . Trap . | . . . . Miscellaneous . | . . . . Route ------- -11/Scrapyard -10/Materials (discovered 5 exits: [*Mat x3] / [*Min x2]) -10/Mines (discovered 3 exits: [*Mat x2] / *Exi) -10/Exiles History --------- Turn | Location | Event 48 | -11/Scrapyard | Discovered new exit (range 14) 79 | -11/Scrapyard | Entered Materials 86 | -10/Materials | Central database locked down 313 | -10/Materials | Build established: Mutant 482 | -10/Materials | Discovered new exit (range 12) 520 | -10/Materials | Discovered new exit (range 12) 1048 | -10/Materials | Discovered new exit (range 12) 1187 | -10/Materials | Discovered new exit (range 16) 1411 | -10/Materials | Discovered new exit (range 12) 1628 | -10/Materials | Entered Mines 1645 | -10/Mines | Learned location of Storage (-8) 1664 | -10/Mines | Met a Derelict bent on vengeance 1791 | -10/Mines | Learned Materials stockpile data 2042 | -10/Mines | A weapon hastily lodged in a ceiling crevice suddenly fell to the ground 2182 | -10/Mines | Escorted by a lone wolf Derelict 2461 | -10/Mines | Discovered new exit (range 5) 2650 | -10/Mines | Discovered new exit (range 11) 2965 | -10/Mines | Deemed a non-threat by the Exiles lab entrance 2967 | -10/Mines | Discovered new exit (range 5) 2977 | -10/Mines | Entered Exiles 3157 | -10/Exiles | Met 8R-AWN 3195 | -10/Exiles | Met EX-HEX 3277 | -10/Exiles | Met EX-BIN 3310 | -10/Exiles | Aligned with FarCom system 3313 | -10/Exiles | Given EX-Vault access code 3370 | -10/Exiles | Opened EX-Vault 3390 | -10/Exiles | Found Longsword +1 3451 | -10/Exiles | Warned to stay clear of 0b10 Research branches 3581 | -10/Exiles | Attacked by the Exiles 3611 | -10/Exiles | Core integrity fell below 50% 3625 | -10/Exiles | Core integrity fell below 20% 3631 | -10/Exiles | Destroyed by 8R-AWN with 8R-AWN's Boregun Last Messages --------------- 03596_ Penetrated by HV Slug. 03596_ HV Slug penetrates Assembled Analyzer. 03596_ Assembled Analyzer disabled. 03596_ Penetrated by HV Slug. 03596_ HV Slug penetrates Assembled Analyzer. 03599_ Penetrated by HV Slug. 03599_ HV Slug penetrates Assembled Analyzer. 03599_ Penetrated by HV Slug. 03601_ HV Slug penetrates Wall. 03601_ Penetrated by HV Slug. 03606_ Critical hit (Destroy). 03606_ Lgt. Treads destroyed. 03606_ Penetrated by HV Slug. 03606_ Critical hit (Destroy). 03606_ Lgt. Treads destroyed. 03608_ Penetrated by HV Slug. 03624_ Lgt. Nuclear Core destroyed. 03624_ Penetrated by HV Slug. 03629_ Destroyed Prototype Device. 03631_ Penetrated by HV Slug. Map ----- +----------------------------------------------------+ | """#?????????????????????????????????????? | | """#?????????????????????????????????????? | | """""????????????????????????????????????? | | """#?????????????????????????????????????? | | "X" """"?????????????????????????????????????? | | """ #?????????????????????????????????????? | | """""""""#?????????????????????????????????????? | | ###########?????????????????????????????????????? | | #???????????????????????????????????????????????? | | #???????????????????????????????????????????????? | | ##??????????????????????????????????????????????? | | ##???###########???????????????????????????????? | | #####"""""""""##??????????????????????????????? | | " """ """"##?????????????????????????????? | | "" " #?????????????????????????????? | | """#?????????????????????????????? | | a"#???????????#####?????????????? | | " "##?????????##" #?????????????? | | "###???????#" #?????????????# | | ""#??????##" ##????????????# | | " "#????### ###????????### | | ##""" ##???# ########## | | ?##""" ##### #""""## | | ??#"""" #;# | | ??#"" ## | | ??"""" @ #### | | ?" g ""#?#"""""#### | | ? #"""##?#######??#### | | ? ######??????????????##### | | ? ##???????????????????????# | | ? " #????????????????????????? | | ??" "" "##????????????????????????? | | ???" " " ""# ##?????????????????????????? | | ???##""" """##" #??????????????????????????? | | ??????#""????## #???????????????????????????? | | ??????##??????#######????????????????????????????? | | ?????????????????????????????????????????????????? | | ?????????????????????????????????????????????????? | | ?????????????????????????????????????????????????? | | ?????????????????????????????????????????????????? | | ?????????????????????????????????????????????????? | | ?????????????????????????????????????????????????? | | ?????????????????????????????????????????????????? | | ?????????????????????????????????????????????????? | | ?????????????????????????????????????????????????? | | ?????????????????????????????????????????????????? | | ?????????????????????????????????????????????????? | | ?????????????????????????????????????????????????? | | ?????????????????????????????????????????????????? | | ?????????????????????????????????????????????????? | +----------------------------------------------------+ Best States ------------- Heat Dissipation 25 Energy Generation 14 Energy Capacity 160 Matter Stores 300 Matter Capacity 300 Sight Range 16 Terrain Scan Density 10 Utility Shielding 33 Evasion (%) 40 Recoil Reduction 2 Item Schematics ----------------- None Robot Schematics ------------------ None Fabricated ------------ Nothing Alien Tech Used ----------------- None Achievements -------------- None Challenges ------------ None Game ------ Seed AbsorptionAntigravJammer Manual? 0 Play Time 00:13:40 Cumulative 335.1 hours Start 2022.04.16 @ 15:47:38 End 2022.04.16 @ 16:15:41 Sessions 1 Manual Loads 0 Difficulty Rogue Special Mode None Game No. 491 Rogue 491 Adventurer 0 Explorer 0 Win Type - Total 6 Types 4/0/1/1/0/0/0/0/0 Lore% 81 Gallery% 84 Achievement% 66 Wizard Run 0 Options --------- ASCII 0 Keyboard 1 Movement Numpad Keybinds 0 Fullscreen 2 Font 24/Smallcaps Map View 76x50 Tactical HUD 1 Map Filters NONE Filters NONE Steam 1 RUN: 9feda050-e925-49bc-82fa-d8d058baef4c